[Event "12ème open de Salon"]
[Site "Salon de Provence, France"]
[Date "2022.07.14"]
[Round "8.5"]
[White "Guillaume, Jean-Tristan"]
[Black "Piquemal, Maxence"]
[Result "1-0"]
[TimeControl "1 h 30 min + 30 s"]
[WhiteElo "1575"]
[BlackElo "1668"]

1. e4 {[%clk 01:30:58]} {[%emt 00:00:01]} d5 {[%clk 01:30:57]} {[%emt
00:00:04]} 2. exd5 {[%clk 01:31:26]} {[%emt 00:00:03]} Qxd5 {[%clk 01:31:19]}
{[%emt 00:00:07]} 3. Nc3 {[%clk 01:31:51]} {[%emt 00:00:05]} Qa5 {[%clk
01:31:40]} {[%emt 00:00:09]} 4. d4 {[%clk 01:32:13]} {[%emt 00:00:07]} c6
{[%clk 01:31:21]} {[%emt 00:00:49]} 5. Nf3 {[%clk 01:32:17]} {[%emt 00:00:26]}
Bg4 {[%clk 01:30:23]} {[%emt 00:01:28]} 6. h3 {[%clk 01:30:52]} {[%emt
00:01:55]} Bh5 {[%clk 01:30:21]} {[%emt 00:00:33]} 7. g4 {[%clk 01:31:01]}
{[%emt 00:00:20]} Bg6 {[%clk 01:30:47]} {[%emt 00:00:04]} 8. Ne5 {[%clk
01:30:14]} {[%emt 00:01:17]} e6 {[%clk 01:23:32]} {[%emt 00:07:46]} 9. Bg2
{[%clk 01:29:15]} {[%emt 00:01:28]} Nf6 {[%clk 01:19:19]} {[%emt 00:04:43]} 10.
O-O {[%clk 01:21:26]} {[%emt 00:08:19]} Nbd7 {[%clk 01:01:15]} {[%emt
00:18:34]} 11. Nxg6 {[%clk 01:07:42]} {[%emt 00:14:15]} hxg6 {[%clk 01:01:18]}
{[%emt 00:00:27]} 12. Bf4 {[%clk 01:05:03]} {[%emt 00:03:08]} Nb6 {[%clk
00:50:50]} {[%emt 00:10:57]} 13. Ne2 {[%clk 00:57:00]} {[%emt 00:08:33]} g5
{[%clk 00:39:49]} {[%emt 00:11:32]} 14. Bd2 {[%clk 00:55:48]} {[%emt 00:01:42]}
Qb5 {[%clk 00:31:27]} {[%emt 00:08:51]} 15. a4 {[%clk 00:47:11]} {[%emt
00:09:07]} Qa6 {[%clk 00:23:28]} {[%emt 00:08:30]} 16. b3 {[%clk 00:39:11]}
{[%emt 00:08:30]} Bd6 {[%clk 00:15:29]} {[%emt 00:08:29]} 17. c4 {[%clk
00:36:54]} {[%emt 00:02:47]} Nbd7 {[%clk 00:11:13]} {[%emt 00:04:46]} 18. Nc3
{[%clk 00:26:33]} {[%emt 00:10:52]} Bb4 {[%clk 00:07:35]} {[%emt 00:04:08]} 19.
Re1 {[%clk 00:15:47]} {[%emt 00:11:17]} Qa5 {[%clk 00:05:34]} {[%emt 00:02:30]}
20. Re3 {[%clk 00:14:45]} {[%emt 00:01:31]} Qc7 {[%clk 00:04:49]} {[%emt
00:01:15]} 21. d5 {[%clk 00:12:46]} {[%emt 00:02:31]} e5 {[%clk 00:04:28]}
{[%emt 00:00:50]} 22. dxc6 {[%clk 00:11:49]} {[%emt 00:01:27]} bxc6 {[%clk
00:04:36]} {[%emt 00:00:22]} 23. Nb5 {[%clk 00:11:12]} {[%emt 00:01:07]} cxb5
{[%clk 00:00:47]} {[%emt 00:04:19]} 24. Bxa8 {[%clk 00:11:38]} {[%emt
00:00:04]} Bc5 {[%clk 00:00:43]} {[%emt 00:00:34]} 25. Rg3 {[%clk 00:05:45]}
{[%emt 00:06:23]} e4 {[%clk 00:00:33]} {[%emt 00:00:39]} 26. Kg2 {[%clk
00:06:13]} {[%emt 00:00:02]} Bd6 {[%clk 00:00:34]} {[%emt 00:00:29]} 27. Re3
{[%clk 00:05:29]} {[%emt 00:01:15]} Bf4 {[%clk 00:00:47]} {[%emt 00:00:17]} 28.
axb5 {[%clk 00:03:56]} {[%emt 00:02:03]} Bxe3 {[%clk 00:00:48]} {[%emt
00:00:29]} 29. Bxe3 {[%clk 00:04:13]} {[%emt 00:00:12]} Ne5 {[%clk 00:00:36]}
{[%emt 00:00:43]} 30. Rxa7 {[%clk 00:04:01]} {[%emt 00:00:41]} Qb8 {[%clk
00:00:33]} {[%emt 00:00:33]} 31. Bc5 {[%clk 00:03:10]} {[%emt 00:01:21]} Nd3
{[%clk 00:00:33]} {[%emt 00:00:31]} 32. Bc6+ {[%clk 00:03:04]} {[%emt
00:00:35]} e3 {[%emt 00:00:15]} 1-0

[Event "12ème open de Salon"]
[Site "Salon de Provence, France"]
[Date "2022.07.14"]
[Round "8.6"]
[White "Roganova, Maxime"]
[Black "Birrittieri, Justin"]
[Result "1-0"]
[TimeControl "1 h 30 min + 30 s"]
[WhiteElo "1471"]
[BlackElo "1394"]

1. e4 {[%clk 01:30:58]} {[%emt 00:00:01]} c5 {[%clk 01:30:52]} {[%emt
00:00:08]} 2. d4 {[%clk 01:31:23]} {[%emt 00:00:05]} cxd4 {[%clk 01:30:59]}
{[%emt 00:00:23]} 3. c3 {[%clk 01:31:48]} {[%emt 00:00:05]} dxc3 {[%clk
01:31:18]} {[%emt 00:00:11]} 4. Nxc3 {[%clk 01:32:11]} {[%emt 00:00:06]} Nc6
{[%clk 01:31:10]} {[%emt 00:00:39]} 5. Nf3 {[%clk 01:32:37]} {[%emt 00:00:05]}
e6 {[%clk 01:31:21]} {[%emt 00:00:19]} 6. Bc4 {[%clk 01:33:02]} {[%emt
00:00:04]} a6 {[%clk 01:31:36]} {[%emt 00:00:15]} 7. O-O {[%clk 01:33:23]}
{[%emt 00:00:10]} Bb4 {[%clk 01:29:19]} {[%emt 00:02:47]} 8. Qe2 {[%clk
01:28:31]} {[%emt 00:05:22]} Nge7 {[%clk 01:28:30]} {[%emt 00:01:19]} 9. Nd5
{[%clk 01:24:58]} {[%emt 00:04:03]} Nxd5 {[%clk 01:24:27]} {[%emt 00:04:33]} 10.
exd5 {[%clk 01:25:19]} {[%emt 00:00:09]} Ne7 {[%clk 01:24:30]} {[%emt
00:00:26]} 11. a3 {[%clk 01:23:20]} {[%emt 00:02:30]} b5 {[%clk 01:22:09]}
{[%emt 00:02:51]} 12. Ba2 {[%clk 01:22:48]} {[%emt 00:01:03]} Bc5 {[%clk
01:20:55]} {[%emt 00:01:43]} 13. b4 {[%clk 01:22:27]} {[%emt 00:00:51]} Ba7
{[%clk 01:20:53]} {[%emt 00:00:32]} 14. Bg5 {[%clk 01:21:50]} {[%emt 00:01:08]}
h6 {[%clk 01:19:08]} {[%emt 00:02:15]} 15. Bh4 {[%clk 01:22:08]} {[%emt
00:00:13]} Bb8 {[%clk 01:16:21]} {[%emt 00:03:16]} 16. Rfd1 {[%clk 01:22:04]}
{[%emt 00:00:35]} Bd6 {[%clk 01:16:36]} {[%emt 00:00:14]} 17. dxe6 {[%clk
01:22:03]} {[%emt 00:00:32]} dxe6 {[%clk 01:16:13]} {[%emt 00:00:53]} 18. Bg3
{[%clk 01:20:28]} {[%emt 00:02:06]} Nf5 {[%clk 01:16:05]} {[%emt 00:00:38]} 19.
Bxd6 {[%clk 01:19:48]} {[%emt 00:01:09]} Nxd6 {[%clk 01:16:28]} {[%emt
00:00:07]} 20. Qe5 {[%clk 01:20:10]} {[%emt 00:00:08]} Ke7 {[%clk 01:16:16]}
{[%emt 00:00:42]} 21. Rac1 {[%clk 01:17:27]} {[%emt 00:03:14]} Bb7 {[%clk
01:15:09]} {[%emt 00:01:37]} 22. Rxd6 {[%clk 01:17:13]} {[%emt 00:00:44]} Rc8
{[%clk 01:10:45]} {[%emt 00:04:54]} 23. Rcd1 {[%clk 01:15:16]} {[%emt
00:02:27]} Qc7 {[%clk 01:09:21]} {[%emt 00:01:54]} 24. Bxe6 {[%clk 01:13:21]}
{[%emt 00:02:26]} fxe6 {[%clk 01:08:47]} {[%emt 00:01:05]} 25. Qxe6+ {[%clk
01:13:43]} {[%emt 00:00:07]} Kf8 {[%clk 01:09:00]} {[%emt 00:00:17]} 26. Ne5
{[%clk 01:14:08]} {[%emt 00:00:05]} Be4 {[%clk 01:06:48]} {[%emt 00:02:42]} 27.
Nd7+ {[%clk 01:14:28]} {[%emt 00:00:10]} 1-0

[Event "12ème open de Salon"]
[Site "Salon de Provence, France"]
[Date "2022.07.14"]
[Round "8.7"]
[White "Brenon, Stephane"]
[Black "Frailinu, Jean-Bernard"]
[Result "0-1"]
[TimeControl "1 h 30 min + 30 s"]
[WhiteElo "1209"]
[BlackElo "1349"]

1. c4 {[%clk 01:30:49]} {[%emt 00:00:10]} e6 {[%clk 01:30:26]} {[%emt
00:00:35]} 2. d3 {[%clk 01:31:03]} {[%emt 00:00:16]} c6 {[%clk 01:28:31]}
{[%emt 00:02:25]} 3. Nc3 {[%clk 01:31:05]} {[%emt 00:00:28]} Nf6 {[%clk
01:28:43]} {[%emt 00:00:18]} 4. e4 {[%clk 01:31:04]} {[%emt 00:00:31]} d5
{[%clk 01:28:49]} {[%emt 00:00:24]} 5. e5 {[%clk 01:28:54]} {[%emt 00:02:40]}
Nfd7 {[%clk 01:29:02]} {[%emt 00:00:16]} 6. d4 {[%clk 01:27:04]} {[%emt
00:02:20]} c5 {[%clk 01:29:00]} {[%emt 00:00:32]} 7. Nf3 {[%clk 01:26:51]}
{[%emt 00:00:44]} Nb6 {[%clk 01:28:15]} {[%emt 00:01:14]} 8. b3 {[%clk
01:26:24]} {[%emt 00:00:57]} Nc6 {[%clk 01:27:57]} {[%emt 00:00:48]} 9. Nb5
{[%clk 01:23:18]} {[%emt 00:03:35]} a6 {[%clk 01:27:31]} {[%emt 00:00:57]} 10.
Nd6+ {[%clk 01:23:29]} {[%emt 00:00:19]} Bxd6 {[%clk 01:27:37]} {[%emt
00:00:24]} 11. exd6 {[%clk 01:23:32]} {[%emt 00:00:27]} Qxd6 {[%clk 01:27:55]}
{[%emt 00:00:13]} 12. Be2 {[%clk 01:20:43]} {[%emt 00:03:19]} dxc4 {[%clk
01:25:35]} {[%emt 00:02:50]} 13. bxc4 {[%clk 01:17:36]} {[%emt 00:03:37]} Nxd4
{[%clk 01:25:25]} {[%emt 00:00:39]} 14. Nxd4 {[%clk 01:14:20]} {[%emt
00:03:47]} Qxd4 {[%clk 01:19:29]} {[%emt 00:06:26]} 15. Qxd4 {[%clk 01:08:16]}
{[%emt 00:06:33]} cxd4 {[%clk 01:19:45]} {[%emt 00:00:14]} 16. Ba3 {[%clk
01:07:28]} {[%emt 00:01:18]} Nd7 {[%clk 01:17:19]} {[%emt 00:02:57]} 17. Rd1
{[%clk 01:01:13]} {[%emt 00:06:44]} e5 {[%clk 01:17:08]} {[%emt 00:00:41]} 18.
O-O {[%clk 01:00:10]} {[%emt 00:01:33]} b6 {[%clk 01:16:40]} {[%emt 00:00:58]}
19. Bf3 {[%clk 00:57:14]} {[%emt 00:03:26]} Ra7 {[%clk 01:16:04]} {[%emt
00:01:06]} 20. Bd6 {[%clk 00:50:23]} {[%emt 00:07:20]} Bb7 {[%clk 01:15:20]}
{[%emt 00:01:14]} 21. Bg4 {[%clk 00:46:30]} {[%emt 00:04:22]} f6 {[%clk
01:15:29]} {[%emt 00:00:22]} 22. Bh5+ {[%clk 00:45:00]} {[%emt 00:02:01]} g6
{[%clk 01:15:41]} {[%emt 00:00:18]} 23. Bg4 {[%clk 00:42:08]} {[%emt 00:03:21]}
Nc5 {[%clk 01:15:57]} {[%emt 00:00:15]} 24. f4 {[%clk 00:41:02]} {[%emt
00:01:36]} Ne4 {[%clk 01:13:54]} {[%emt 00:02:31]} 25. Bc7 {[%clk 00:34:05]}
{[%emt 00:07:27]} Nc3 {[%clk 01:09:18]} {[%emt 00:05:05]} 26. Rd2 {[%emt
00:04:25]} b5 {[%emt 00:00:35]} 27. Bb6 {[%clk 00:26:42]} {[%emt 00:02:54]} Ra8
{[%clk 01:09:16]} {[%emt 00:00:32]} 28. fxe5 {[%clk 00:26:10]} {[%emt
00:01:02]} f5 {[%clk 01:08:10]} {[%emt 00:01:36]} 29. Bf3 {[%clk 00:26:03]}
{[%emt 00:00:37]} Bxf3 {[%clk 01:07:40]} {[%emt 00:01:01]} 30. Rxf3 {[%clk
00:25:31]} {[%emt 00:01:01]} bxc4 {[%clk 01:07:16]} {[%emt 00:00:54]} 31. Bxd4
{[%clk 00:24:50]} {[%emt 00:01:12]} Nb5 {[%clk 01:07:16]} {[%emt 00:00:29]} 32.
Ba1 {[%clk 00:22:36]} {[%emt 00:02:44]} O-O {[%clk 01:07:02]} {[%emt 00:00:45]}
33. e6 {[%clk 00:21:42]} {[%emt 00:01:24]} Rfe8 {[%clk 01:07:10]} {[%emt
00:00:21]} 34. Re3 {[%clk 00:21:02]} {[%emt 00:01:09]} c3 {[%clk 01:07:20]}
{[%emt 00:00:21]} 35. Rc2 {[%clk 00:16:57]} {[%emt 00:04:34]} Rac8 {[%clk
01:07:41]} {[%emt 00:00:10]} 36. a4 {[%clk 00:16:50]} {[%emt 00:00:37]} Nd4
{[%clk 01:06:36]} {[%emt 00:01:35]} 37. Rcxc3 {[%clk 00:16:43]} {[%emt
00:00:37]} Rc7 {[%emt 00:00:25]} 38. Rc5 Rxc5 {[%clk 01:06:41]} 39. Bb2 {[%emt
00:00:11]} Rc3 40. Bxc3 {[%clk 00:17:02]} Nxe6 {[%clk 01:07:03]} {[%emt
00:00:07]} 41. h3 {[%clk 00:16:20]} {[%emt 00:01:13]} Kf7 {[%clk 01:07:06]}
{[%emt 00:00:26]} 42. Rd3 {[%clk 00:15:31]} {[%emt 00:01:19]} Rd8 {[%clk
01:06:34]} {[%emt 00:01:01]} 43. Rxd8 {[%clk 00:15:20]} {[%emt 00:00:41]} Nxd8
{[%clk 01:06:44]} {[%emt 00:00:20]} 44. Kf2 {[%clk 00:15:35]} {[%emt 00:00:15]}
Nb7 {[%clk 01:06:43]} {[%emt 00:00:31]} 45. Kf3 {[%clk 00:15:23]} {[%emt
00:00:42]} Nc5 {[%clk 01:06:54]} {[%emt 00:00:19]} 46. a5 {[%clk 00:15:03]}
{[%emt 00:00:49]} Ne6 {[%clk 01:06:43]} {[%emt 00:00:41]} 47. g4 {[%clk
00:14:26]} {[%emt 00:01:07]} Ng5+ {[%clk 01:06:15]} {[%emt 00:00:58]} 48. Kg2
{[%clk 00:14:24]} {[%emt 00:00:30]} f4 {[%clk 01:05:40]} {[%emt 00:01:07]} 49.
Kh2 {[%clk 00:12:10]} {[%emt 00:02:44]} Ne6 {[%clk 01:05:06]} {[%emt 00:01:05]}
50. h4 {[%clk 00:11:56]} {[%emt 00:00:45]} h6 {[%clk 01:05:16]} {[%emt
00:00:20]} 51. Kg2 {[%clk 00:11:45]} {[%emt 00:00:41]} g5 {[%clk 01:05:13]}
{[%emt 00:00:33]} 52. h5 {[%clk 00:10:26]} {[%emt 00:01:49]} Nc5 {[%clk
01:05:23]} {[%emt 00:00:19]} 53. Kf3 {[%clk 00:09:42]} {[%emt 00:01:15]} Nd7
{[%clk 01:04:14]} {[%emt 00:01:39]} 54. Bd4 {[%clk 00:09:28]} {[%emt 00:00:44]}
Nf6 {[%clk 01:04:14]} {[%emt 00:00:29]} 55. Bxf6 {[%clk 00:08:55]} {[%emt
00:01:03]} Kxf6 {[%clk 01:04:20]} {[%emt 00:00:24]} 56. Ke4 {[%clk 00:08:47]}
{[%emt 00:00:38]} Ke6 {[%clk 01:04:30]} {[%emt 00:00:21]} 57. Kf3 {[%clk
00:08:48]} {[%emt 00:00:29]} Kf7 {[%clk 01:04:42]} {[%emt 00:00:44]} 0-1

[Event "12ème open de Salon"]
[Site "Salon de Provence, France"]
[Date "2022.07.14"]
[Round "8.8"]
[White "Roganova, Jeremy"]
[Black "Polaert, Clarence"]
[Result "1-0"]
[TimeControl "1 h 30 min + 30 s"]
[WhiteElo "1191"]
[BlackElo "1199"]

1. e4 {[%clk 01:30:58]} {[%emt 00:00:01]} e6 {[%clk 01:30:53]} {[%emt
00:00:07]} 2. d4 {[%clk 01:31:25]} {[%emt 00:00:04]} d5 {[%clk 01:31:16]}
{[%emt 00:00:07]} 3. e5 {[%clk 01:31:48]} {[%emt 00:00:07]} c5 {[%clk
01:31:40]} {[%emt 00:00:06]} 4. c3 {[%clk 01:32:14]} {[%emt 00:00:05]} Qb6
{[%clk 01:32:05]} {[%emt 00:00:04]} 5. Nf3 {[%clk 01:32:13]} {[%emt 00:00:31]}
Nc6 {[%clk 01:32:19]} {[%emt 00:00:15]} 6. Bd3 {[%clk 01:32:25]} {[%emt
00:00:19]} Bd7 {[%clk 01:31:19]} {[%emt 00:01:29]} 7. Bc2 {[%clk 01:32:47]}
{[%emt 00:00:08]} Nge7 {[%clk 01:30:03]} {[%emt 00:01:46]} 8. O-O {[%clk
01:32:52]} {[%emt 00:00:25]} Ng6 {[%clk 01:30:06]} {[%emt 00:00:27]} 9. a3
{[%clk 01:30:27]} {[%emt 00:02:55]} Be7 {[%clk 01:29:19]} {[%emt 00:01:18]} 10.
b4 {[%clk 01:30:23]} {[%emt 00:00:33]} cxd4 {[%clk 01:28:26]} {[%emt 00:01:23]}
11. cxd4 {[%clk 01:30:31]} {[%emt 00:00:22]} Nh4 {[%clk 01:27:55]} {[%emt
00:01:02]} 12. Nxh4 {[%clk 01:30:13]} {[%emt 00:00:48]} Bxh4 {[%clk 01:28:16]}
{[%emt 00:00:08]} 13. Be3 {[%clk 01:30:28]} {[%emt 00:00:15]} O-O {[%clk
01:25:27]} {[%emt 00:03:19]} 14. Qh5 {[%clk 01:29:57]} {[%emt 00:01:02]} g6
{[%clk 01:25:17]} {[%emt 00:00:39]} 15. Qxh4 {[%clk 01:30:20]} {[%emt
00:00:07]} Rac8 {[%clk 01:24:28]} {[%emt 00:01:19]} 16. Bh6 {[%clk 01:30:43]}
{[%emt 00:00:07]} Rfe8 {[%clk 01:24:41]} {[%emt 00:00:15]} 17. Qf6 {[%clk
01:31:07]} {[%emt 00:00:08]} Nxd4 {[%clk 01:24:48]} {[%emt 00:00:28]} 18. Qg7#
{[%clk 01:30:46]} 1-0

[Event "12ème open de Salon"]
[Site "Salon de Provence, France"]
[Date "2022.07.15"]
[Round "9.3"]
[White "Delorme, Laurie"]
[Black "Charvein, Gabriel"]
[Result "1/2-1/2"]
[TimeControl "1 h 30 min + 30 s"]
[WhiteElo "2083"]
[BlackElo "2078"]

1. d4 {[%clk 01:27:51]} {[%emt 00:03:08]} d5 {[%clk 01:30:55]} {[%emt
00:00:06]} 2. c4 {[%clk 01:27:54]} {[%emt 00:00:27]} e6 {[%clk 01:31:21]}
{[%emt 00:00:04]} 3. Nc3 {[%clk 01:28:18]} {[%emt 00:00:06]} c5 {[%clk
01:31:47]} {[%emt 00:00:04]} 4. cxd5 {[%clk 01:28:30]} {[%emt 00:00:18]} exd5
{[%clk 01:32:10]} {[%emt 00:00:06]} 5. Nf3 {[%clk 01:28:52]} {[%emt 00:00:08]}
Nc6 {[%clk 01:32:35]} {[%emt 00:00:05]} 6. dxc5 {[%clk 01:28:44]} {[%emt
00:00:38]} Nf6 {[%clk 01:31:22]} {[%emt 00:01:43]} 7. Bg5 {[%clk 01:25:13]}
{[%emt 00:04:01]} Bxc5 {[%clk 01:31:28]} {[%emt 00:00:25]} 8. e3 {[%clk
01:05:52]} {[%emt 00:19:51]} O-O {[%clk 01:28:23]} {[%emt 00:03:34]} 9. Be2
{[%clk 01:02:18]} {[%emt 00:04:05]} d4 {[%clk 01:23:28]} {[%emt 00:05:24]} 10.
exd4 {[%clk 00:57:51]} {[%emt 00:04:58]} Nxd4 {[%clk 01:21:57]} {[%emt
00:02:00]} 11. Nxd4 {[%clk 00:58:12]} {[%emt 00:00:09]} Qxd4 {[%clk 01:19:41]}
{[%emt 00:02:46]} 12. O-O {[%clk 00:56:11]} {[%emt 00:02:31]} Be6 {[%clk
01:01:00]} {[%emt 00:19:11]} 13. Qc2 {[%clk 00:38:57]} {[%emt 00:17:44]} Rac8
{[%clk 00:55:15]} {[%emt 00:06:15]} 14. Rad1 {[%clk 00:37:51]} {[%emt
00:01:36]} Qe5 {[%clk 00:54:45]} {[%emt 00:01:00]} 15. Qd2 {[%clk 00:38:10]}
{[%emt 00:00:11]} Bb4 {[%clk 00:42:24]} {[%emt 00:12:51]} 16. Bf3 {[%clk
00:28:39]} {[%emt 00:10:01]} Bxc3 {[%clk 00:37:09]} {[%emt 00:05:45]} 17. bxc3
{[%clk 00:28:52]} {[%emt 00:00:17]} Ne4 {[%clk 00:36:46]} {[%emt 00:00:54]} 18.
Bxe4 {[%clk 00:28:33]} {[%emt 00:00:49]} Qxe4 {[%clk 00:37:09]} {[%emt
00:00:07]} 19. Be3 {[%clk 00:28:28]} {[%emt 00:00:35]} Rc6 {[%clk 00:29:01]}
{[%emt 00:08:38]} 20. Bxa7 {[%clk 00:20:19]} {[%emt 00:08:39]} Qg6 {[%clk
00:22:59]} {[%emt 00:06:32]} 21. Bd4 {[%clk 00:15:52]} {[%emt 00:04:57]} h5
{[%clk 00:20:59]} {[%emt 00:02:30]} 22. Qf4 {[%clk 00:09:44]} {[%emt 00:06:37]}
1/2-1/2

[Event "12ème open de Salon"]
[Site "Salon de Provence, France"]
[Date "2022.07.15"]
[Round "9.4"]
[White "Tramarin, Matteo"]
[Black "Gomez, Guy"]
[Result "0-1"]
[TimeControl "1 h 30 min + 30 s"]
[WhiteElo "1501"]
[BlackElo "1532"]

1. c4 {[%clk 01:30:52]} {[%emt 00:00:07]} c5 {[%clk 01:30:42]} {[%emt
00:00:18]} 2. Nc3 {[%clk 01:31:14]} {[%emt 00:00:08]} Nf6 {[%clk 01:31:01]}
{[%emt 00:00:11]} 3. g3 {[%clk 01:31:27]} {[%emt 00:00:18]} Nc6 {[%clk
01:30:39]} {[%emt 00:00:52]} 4. Bg2 {[%clk 01:31:45]} {[%emt 00:00:11]} e6
{[%clk 01:30:37]} {[%emt 00:00:32]} 5. d3 {[%clk 01:31:00]} {[%emt 00:01:15]}
d5 {[%clk 01:28:48]} {[%emt 00:02:20]} 6. cxd5 {[%clk 01:30:30]} {[%emt
00:01:00]} exd5 {[%clk 01:28:55]} {[%emt 00:00:23]} 7. Bg5 {[%clk 01:30:29]}
{[%emt 00:00:31]} d4 {[%clk 01:27:49]} {[%emt 00:01:36]} 8. Ne4 {[%clk
01:29:38]} {[%emt 00:01:21]} Be7 {[%clk 01:28:05]} {[%emt 00:00:14]} 9. Nxf6+
{[%clk 01:28:02]} {[%emt 00:02:06]} Bxf6 {[%clk 01:28:22]} {[%emt 00:00:14]} 10.
Bxf6 {[%clk 01:28:24]} {[%emt 00:00:07]} Qxf6 {[%clk 01:28:36]} {[%emt
00:00:16]} 11. Rc1 {[%clk 01:28:37]} {[%emt 00:00:16]} b6 {[%clk 01:23:37]}
{[%emt 00:05:29]} 12. b4 {[%clk 01:25:12]} {[%emt 00:03:55]} Rb8 {[%clk
01:11:50]} {[%emt 00:12:17]} 13. bxc5 {[%clk 01:23:29]} {[%emt 00:02:13]} O-O
{[%clk 01:05:10]} {[%emt 00:07:10]} 14. cxb6 {[%clk 01:21:41]} {[%emt
00:02:17]} Rxb6 {[%clk 01:05:12]} {[%emt 00:00:28]} 15. Nf3 {[%clk 01:21:39]}
{[%emt 00:00:33]} Nb4 {[%clk 00:57:26]} {[%emt 00:08:16]} 16. Qd2 {[%clk
01:21:00]} {[%emt 00:01:09]} Be6 {[%clk 00:56:00]} {[%emt 00:01:57]} 17. O-O
{[%clk 01:18:48]} {[%emt 00:02:42]} Nxa2 {[%clk 00:50:04]} {[%emt 00:06:25]} 18.
Ra1 {[%clk 01:17:47]} {[%emt 00:01:30]} Ra6 {[%clk 00:28:56]} {[%emt 00:21:40]}
19. Rfb1 {[%clk 01:11:08]} {[%emt 00:07:08]} Bd5 {[%clk 00:26:15]} {[%emt
00:03:10]} 20. Rb2 {[%clk 01:06:12]} {[%emt 00:05:27]} Nb4 {[%clk 00:09:33]}
{[%emt 00:17:12]} 21. Rxa6 {[%clk 01:04:35]} {[%emt 00:02:08]} Nxa6 {[%clk
00:09:48]} {[%emt 00:00:15]} 22. Qa5 {[%clk 01:04:47]} {[%emt 00:00:17]} Bxf3
{[%clk 00:07:51]} {[%emt 00:02:28]} 23. Bxf3 {[%clk 01:05:10]} {[%emt
00:00:06]} g6 {[%clk 00:07:22]} {[%emt 00:00:59]} 24. Bb7 {[%clk 01:03:36]}
{[%emt 00:02:04]} Rb8 {[%clk 00:06:25]} {[%emt 00:01:27]} 25. Rb5 {[%clk
01:04:00]} {[%emt 00:00:06]} Qd8 {[%emt 00:01:15]} 0-1